bitfinex/quotes_ETHUSD_20240816
["timestamp","ask_amount","ask_price","bid_price","bid_amount"]
[1723811189347,0.24868,2597.2,2596.8,3.85087]
[1723811189547,2.4868,2597.3,2596.8,3.85087]
[1723811190906,2.4868,2597.3,2596.7,3.85093]
[1723811191107,2.4868,2597.3,2596.7,7.70189]
[1723811191108,0.1272266,2597.2,2596.7,7.70189]
[1723811191348,2.4868,2597.3,2596.8,3.85089]
[1723811191651,3.120489,2597.3,2596.8,3.85089]
[1723811192335,3.120489,2597.3,2596.9,3.85073]
[1723811192502,2.4868,2597.3,2596.9,3.85073]
[1723811193844,2.4868,2597.3,2597.1,3.85042]
[1723811194245,2.4868,2597.3,2596.8,19.79]
[1723811194456,2.4868,2597.3,2596.8,22.0891]
[1723811194648,2.4868,2597.3,2597.1,3.85034]
[1723811195362,2.4868,2597.3,2597.0,3.85058]
[1723811195725,2.4868,2597.3,2596.8,23.64074]
[1723811195922,2.4868,2597.3,2597.1,3.85042]
[1723811196520,2.4868,2597.3,2597.2,3.8503]
[1723811196964,2.4868,2597.3,2597.1,3.85034]
[1723811197851,2.4868,2597.3,2597.2,3.8503]
[1723811198025,2.4868,2597.3,2597.1,3.85034]
[1723811199963,2.4868,2597.3,2597.2,3.8503]
[1723811200573,2.61400583,2597.3,2597.2,3.8503]
[1723811200744,2.4868,2597.3,2597.2,3.8503]
[1723811200948,2.4338,2597.7,2597.2,3.8503]
[1723811201170,0.12720343,2597.6,2597.2,3.8503]
[1723811201329,0.12720343,2597.5,2597.2,3.8503]
[1723811201530,0.12720343,2597.4,2597.2,3.8503]
[1723811201726,0.12720343,2597.3,2597.2,3.8503]
[1723811201933,1.06777601,2597.6,2597.0,3.85045]
[1723811201934,0.12720343,2597.5,2597.0,3.85045]
[1723811202144,0.12720343,2597.4,2597.1,3.85036]
[1723811202349,0.12720343,2597.3,2597.1,3.85036]
[1723811202549,0.12720343,2597.2,2597.1,3.85036]
[1723811203083,0.12720343,2597.5,2597.2,3.85025]
[1723811203275,0.12721675,2597.4,2597.2,3.85025]
[1723811203467,0.12721675,2597.3,2597.2,3.85025]
[1723811203976,0.12721675,2597.3,2597.1,7.70073]
[1723811204165,0.12721675,2597.2,2597.1,3.85036]
[1723811204363,0.12721675,2597.2,2597.1,7.372048]
[1723811204703,3.64501919,2597.8,2597.2,3.85029]
[1723811204854,2.3487,2597.6,2597.0,7.0515]
[1723811205045,0.37479101,2597.5,2597.0,7.0515]
[1723811205362,0.12720092,2597.4,2597.0,7.0515]
[1723811205562,0.12720092,2597.3,2597.0,3.201]
[1723811205761,0.12720092,2597.2,2596.8,6.85076]
[1723811205978,7.49487919,2597.5,2596.9,3.85066]
[1723811205979,0.12720092,2597.1,2596.9,3.85066]
[1723811206153,0.12720092,2597.0,2596.9,7.7014]
[1723811206349,2.3239,2597.1,2596.9,3.85066]
[1723811206594,2.3239,2597.1,2597.0,3.85059]
[1723811206943,2.45111524,2597.1,2597.0,3.85059]
[1723811207137,0.12721524,2597.1,2597.0,3.85059]
[1723811207355,0.12721524,2597.1,2597.0,7.70118]
[1723811207651,0.12721524,2597.1,2597.0,8.771298]
[1723811207866,0.12721524,2597.1,2596.8,3.85078]
[1723811208068,0.12721524,2597.1,2596.4,15.15274]
[1723811208069,2.41301524,2597.0,2596.4,15.15274]
[1723811208272,1.11801824,2596.9,2596.4,7.45]
[1723811208449,9.85712266,2597.0,2596.4,7.45]
[1723811208450,10.29157955,2596.8,2596.4,7.45]
[1723811208641,4.05442311,2596.7,2596.4,7.45]
[1723811208979,4.05442311,2596.7,2596.1,19.79]
[1723811208980,2.2858,2596.4,2596.1,19.79]
[1723811209281,2.2858,2596.4,2595.8,3.85228]
[1723811209282,0.12721524,2596.3,2596.2,7.70356]
[1723811209442,0.12721524,2596.3,2596.2,8.473916]
[1723811209641,0.12721524,2596.3,2596.2,4.622136]
[1723811209866,0.12721524,2596.3,2596.1,7.05285]
[1723811210253,0.12721524,2596.3,2596.2,3.85178]
[1723811210462,0.12725353,2596.3,2596.1,7.05285]
[1723811210658,0.25450856,2596.3,2596.1,7.05285]
[1723811210860,0.12725353,2596.3,2596.2,3.85178]
[1723811211082,2.2858,2596.4,2596.3,3.85163]
[1723811211292,2.41305138,2596.4,2596.3,3.85163]
[1723811211650,0.12725138,2596.4,2596.3,3.85163]
[1723811212046,0.12725138,2596.4,2596.2,3.8517]
[1723811212265,2.3627,2596.7,2596.4,3.85145]
[1723811212460,0.12724647,2596.6,2596.5,7.70266]
[1723811212673,0.12724647,2596.6,2596.5,8.793026]
[1723811212878,0.12724647,2596.6,2596.5,4.941696]
[1723811213061,0.12724647,2596.6,2596.4,7.05247]
[1723811213359,2.3627,2597.0,2596.6,3.85109]
[1723811213578,0.12722978,2596.9,2596.4,7.05234]
[1723811213743,0.12722978,2596.8,2596.4,7.05234]
[1723811213947,0.12722978,2596.7,2596.6,3.85105]
[1723811214146,0.12722978,2596.7,2596.5,3.85133]
[1723811214391,2.3627,2597.0,2596.5,3.85133]
[1723811214548,2.4214,2596.8,2596.3,3.85153]
[1723811214746,0.12723713,2596.7,2596.3,7.70307]
[1723811215171,0.12723713,2596.7,2596.4,3.85148]
[1723811215689,0.12723713,2596.7,2596.2,11.30167]
[1723811215983,0.12723713,2596.6,2596.2,11.30167]
[1723811216197,0.12723713,2596.5,2596.3,3.8516]
[1723811216360,2.4214,2596.8,2596.5,3.85132]
[1723811216685,2.4214,2596.8,2596.4,3.85148]
[1723811216686,0.12724392,2596.7,2596.4,3.85148]
[1723811216907,2.4214,2596.8,2596.4,3.85148]
[1723811216908,0.12724392,2596.6,2596.4,3.85148]
[1723811217200,0.12724392,2596.5,2596.4,3.85148]
[1723811217859,2.4214,2596.8,2596.4,3.85148]
[1723811218067,0.12723865,2596.7,2596.5,3.85131]
[1723811218292,0.12724069,2596.6,2596.5,3.85131]
[1723811218491,2.4214,2596.8,2596.5,3.85131]
[1723811218701,0.12724082,2596.6,2596.5,3.85131]
[1723811219367,2.4214,2596.8,2596.7,3.85104]
[1723811219570,0.12723177,2596.8,2596.7,3.85104]
[1723811220786,2.3482,2596.7,2596.3,3.85155]
[1723811221006,0.12723177,2596.6,2596.4,3.85141]
[1723811221171,2.3482,2596.7,2596.4,3.85141]
[1723811221172,2.3482,2596.7,2596.6,3.85119]
[1723811221375,2.3482,2597.1,2596.7,3.851]
[1723811221665,0.12723561,2597.0,2596.4,0.3586155]
[1723811221868,2.4415,2596.7,2596.0,3.0]
[1723811222103,2.4415,2596.7,2596.3,3.85162]
[1723811222104,0.12723561,2596.6,2596.3,3.85162]
[1723811223070,0.12723561,2596.6,2596.2,3.85175]
[1723811223920,0.12723561,2596.6,2596.1,23.64182]
[1723811224414,0.12723561,2596.6,2595.7,3.85243]
[1723811224415,2.3939,2596.5,2595.7,3.85243]
[1723811224629,6.37269561,2596.4,2595.7,7.70484]
[1723811224769,0.12723561,2596.3,2595.7,7.70484]
[1723811224965,0.76450517,2596.3,2595.7,7.70484]
[1723811225196,0.12723561,2596.2,2595.7,3.85241]
[1723811225428,2.3939,2596.2,2595.7,7.70485]
[1723811225616,0.12727248,2596.1,2595.9,3.85209]
[1723811225814,2.3939,2596.2,2595.9,3.85209]
[1723811225988,2.3939,2596.2,2596.0,3.85206]
[1723811226323,6.24579,2596.2,2595.2,4.00005296]
[1723811226526,6.24579,2596.2,2595.5,7.05372]
[1723811226527,0.12728927,2596.1,2595.5,7.05372]
[1723811226726,0.12728927,2596.0,2595.5,7.05372]
[1723811226886,2.4428,2595.8,2595.3,3.85302]
[1723811227081,2.4428,2595.8,2595.4,0.705402]
[1723811227413,2.4428,2595.8,2595.3,7.70605]
[1723811227944,2.4428,2595.8,2595.4,3.85296]
[1723811228233,2.4428,2595.8,2595.5,3.85274]
[1723811228543,2.4596,2596.3,2595.7,3.85252]
[1723811228823,0.12727947,2596.2,2595.7,3.85252]
[1723811228988,0.12727947,2596.1,2595.7,3.85252]
[1723811229202,0.12727947,2596.1,2595.6,3.85267]
[1723811229203,7.30666189,2596.3,2595.6,3.85267]
[1723811229391,0.12727921,2596.2,2595.6,3.85267]
[1723811229587,0.12727921,2596.1,2596.0,3.85208]
[1723811229943,2.4815,2596.6,2596.3,3.85154]
[1723811230226,0.12725295,2596.5,2596.4,3.85148]
[1723811230412,2.4815,2596.6,2596.3,3.85154]
[1723811230586,0.12725945,2596.5,2595.9,3.85212]
[1723811230787,0.12725945,2596.4,2596.0,3.0]
[1723811230987,0.12725945,2596.3,2596.0,3.0]
[1723811231182,6.33276,2596.6,2596.0,3.0]
[1723811231183,7.351135,2596.6,2596.0,3.0]
[1723811231483,0.12725717,2596.5,2596.1,3.85192]
[1723811231682,0.12725717,2596.4,2596.1,3.85192]
[1723811231889,2.4815,2596.6,2596.1,3.85192]
[1723811232122,0.12725617,2596.5,2596.1,3.85192]
[1723811232422,2.4815,2596.6,2596.1,3.85192]
[1723811232722,0.12725253,2596.5,2596.1,3.85185]
[1723811232928,0.12725357,2596.4,2596.1,4.537035]
[1723811233149,2.4815,2596.6,2596.1,4.537035]
[1723811233317,0.12725288,2596.5,2596.1,4.537105]
[1723811233569,2.4815,2596.6,2596.1,4.537105]
[1723811233713,2.3579,2596.0,2595.1,3.85337]
[1723811233911,2.3579,2595.7,2595.1,3.85331]
[1723811234150,0.20341718,2595.6,2595.1,3.85331]
[1723811234309,0.12725931,2595.5,2595.1,3.85331]
[1723811234520,0.12725931,2595.4,2594.9,3.85361]
[1723811234715,2.39480749,2595.3,2594.8,3.85383]
[1723811234923,0.12730749,2595.2,2594.8,3.85383]
[1723811235510,0.12730749,2595.2,2594.9,3.8537]
[1723811235710,2.2675,2595.3,2594.9,3.8537]
[1723811236030,0.12731306,2595.2,2594.9,3.8537]
[1723811236235,2.2675,2595.3,2594.9,3.8537]
[1723811236433,2.2675,2595.3,2594.7,4.239246]
[1723811236734,2.2675,2595.3,2594.7,3.85386]
[1723811237509,2.2675,2595.3,2594.8,6.85374]
[1723811237711,2.2675,2595.3,2594.9,3.8537]
[1723811237921,2.2675,2595.3,2594.8,3.0]
[1723811238523,0.07615787,2595.2,2594.7,7.05486]
[1723811238723,2.2525,2595.1,2594.7,7.05486]
[1723811239817,2.2525,2595.1,2594.7,3.85386]
[1723811240363,2.2525,2595.1,2594.7,7.70777]
[1723811240517,2.2525,2595.1,2594.7,3.85386]
[1723811241024,2.2525,2595.1,2594.7,7.05486]
[1723811241612,2.2525,2595.1,2594.8,3.85374]
[1723811242041,2.2525,2595.1,2594.7,3.201]
[1723811242274,3.85441,2594.5,2593.6,3.85557]
[1723811242428,2.4026,2594.4,2593.9,3.85511]
[1723811242754,2.4026,2594.4,2593.9,7.71018]
[1723811242940,2.4026,2594.4,2593.8,3.201]
[1723811243145,2.4011,2594.2,2593.9,3.85517]
[1723811243345,2.4011,2594.2,2593.9,7.71028]
[1723811243544,2.4011,2594.2,2593.9,3.85511]
[1723811243742,2.4011,2594.2,2593.7,3.85537]
[1723811243941,0.07615787,2594.1,2593.5,7.05665]
[1723811244253,0.07615787,2594.1,2593.5,7.83301713]
[1723811244454,0.07615787,2594.1,2593.5,11.68870713]
[1723811244652,2.4011,2594.2,2593.5,7.83301713]
[1723811244893,2.4011,2594.2,2593.8,3.85533]
[1723811245242,2.4011,2594.2,2593.7,3.85539]
[1723811245552,2.71736787,2594.2,2593.7,7.71078]
[1723811245718,2.47725787,2594.2,2593.7,3.85539]
[1723811245920,6.24054,2594.0,2593.0,3.86147]
[1723811246231,2.3854,2593.9,2593.4,3.8558]
[1723811246450,3.85551,2593.7,2593.1,3.85635]
[1723811246656,2.3854,2593.6,2593.1,3.85635]
[1723811247017,2.3854,2593.6,2593.1,7.71265]
[1723811247239,2.3854,2593.6,2593.3,3.856]
[1723811247761,2.3854,2593.6,2593.2,7.0572]
[1723811247972,2.3854,2593.6,2593.3,3.85609]
[1723811248394,2.3854,2593.6,2593.4,3.85581]
[1723811248684,2.4596,2594.1,2593.6,3.85553]
[1723811248887,3.64280901,2594.9,2593.8,3.201]
[1723811248888,2.4596,2594.9,2593.8,3.201]
[1723811249066,6.31333,2594.9,2594.3,3.8545]
[1723811249673,6.31333,2594.9,2594.1,3.201]
[1723811249674,2.4596,2594.9,2594.1,3.201]
[1723811249839,6.31334,2594.9,2594.3,3.8545]
[1723811250166,2.4596,2594.9,2594.7,3.854]
[1723811250346,2.4596,2594.9,2594.4,7.05535]
[1723811250552,2.4596,2594.9,2594.5,3.85424]
[1723811251175,2.4596,2594.9,2594.4,4.292002]
[1723811251480,2.4596,2594.9,2594.6,3.85414]
[1723811251935,2.4596,2594.9,2594.4,7.05531]
[1723811252677,6.31344,2594.9,2594.2,3.85465]
[1723811252889,6.31344,2594.9,2594.2,4.560215]
[1723811253079,2.4596,2594.9,2594.4,3.201]
[1723811253379,2.4596,2594.9,2594.6,3.85415]
[1723811253879,2.4596,2594.9,2594.4,3.85436]
[1723811254240,2.53575787,2594.9,2594.3,3.85452]
[1723811254442,2.4596,2594.9,2594.5,3.85429]
[1723811254637,2.4596,2594.9,2594.3,3.85448]
[1723811254883,2.4596,2594.9,2594.4,3.85436]
[1723811255762,0.07615787,2594.8,2594.0,3.8549]
[1723811256091,2.3807,2594.6,2594.1,6.8548]
[1723811256271,2.3807,2594.6,2594.1,8.27788]
[1723811256641,3.85385,2594.9,2593.8,3.85522]
[1723811256642,3.85373,2594.9,2593.8,3.85522]
[1723811256850,3.85373,2594.9,2593.8,3.85525]
[1723811256851,2.4709,2594.4,2593.8,3.85525]
[1723811257080,0.07615787,2594.3,2593.7,3.201]
[1723811257385,0.07615787,2594.3,2593.7,7.05641]
[1723811257807,0.07615787,2594.2,2593.7,7.05641]
[1723811257944,3.85461,2594.3,2593.7,7.05641]
[1723811258145,3.93076787,2594.3,2593.7,7.05641]
[1723811258542,3.85461,2594.3,2593.7,7.05641]
[1723811259099,3.93099787,2594.2,2593.7,3.201]
[1723811259259,3.93091787,2594.2,2593.7,3.201]
[1723811259654,8.72727,2594.3,2593.7,3.201]
[1723811259988,0.07615787,2594.2,2593.7,3.201]
[1723811260203,0.07615787,2594.2,2593.7,7.05648]
[1723811260381,0.07615787,2594.3,2593.7,7.05639]
[1723811260549,0.07615787,2594.3,2593.8,3.85533]
[1723811260772,0.07615787,2594.3,2593.7,7.05639]
[1723811260991,0.07615787,2594.3,2593.8,3.85534]
[1723811261495,2.2731,2594.2,2593.7,3.201]
[1723811261697,0.07615787,2594.1,2593.5,3.85576]
[1723811261858,3.85493,2594.1,2593.5,3.85576]
[1723811262260,3.85493,2594.1,2593.5,3.85571]
[1723811262596,3.85493,2594.1,2593.3,3.85597]
[1723811262597,6.40999787,2594.0,2593.3,3.85597]
[1723811262980,3.93148787,2593.9,2593.3,3.85597]
[1723811263151,6.46150778,2593.8,2593.2,3.85623]
[1723811263350,3.93165787,2593.7,2593.1,30.441]
[1723811263648,0.07615787,2593.7,2593.1,7.05725]
[1723811264493,0.75650054,2593.7,2593.1,3.201]
[1723811264727,2.4787,2593.5,2593.0,0.005]
[1723811264852,6.33497,2593.2,2593.0,0.005]
[1723811265175,2.55485787,2593.2,2593.0,0.005]
[1723811265501,0.12742803,2593.1,2593.0,0.005]
[1723811266396,2.4787,2593.2,2593.0,0.005]
[1723811266573,2.4787,2593.2,2593.0,3.86153]
[1723811266999,2.4787,2593.2,2593.0,0.005]
[1723811268366,3.85551,2593.7,2593.0,0.005]
[1723811268367,6.20859,2593.7,2593.0,0.005]
[1723811268552,0.07615787,2593.5,2593.0,3.86143]
[1723811268750,0.385551,2593.6,2593.0,0.005]
[1723811268955,2.353,2593.3,2593.0,0.005]
[1723811269182,2.353,2593.3,2593.1,3.85629]
[1723811269770,2.353,2593.3,2593.2,3.85623]
[1723811270076,2.353,2593.3,2593.1,3.85628]
[1723811270248,2.353,2593.3,2593.0,0.005]
[1723811270449,2.353,2593.3,2593.0,3.86145]
[1723811270651,2.353,2593.3,2593.0,0.005]
[1723811271850,2.66445787,2593.3,2593.0,0.005]
[1723811272465,2.5883,2593.3,2593.0,0.005]
[1723811272792,2.353,2593.3,2593.0,0.005]
[1723811273199,2.42915787,2593.3,2593.0,0.005]
[1723811273572,2.353,2593.3,2593.0,0.005]
[1723811273961,2.42915787,2593.3,2593.0,0.005]
[1723811274382,2.353,2593.3,2593.0,0.005]
[1723811277033,2.5883,2593.3,2593.0,0.005]
[1723811277381,2.66445787,2593.3,2593.0,0.005]
[1723811277880,2.5883,2593.3,2593.0,0.005]
[1723811278080,2.353,2593.3,2593.0,0.005]
[1723811280439,2.353,2593.3,2593.0,3.86153]
[1723811281328,2.353,2593.3,2593.0,3.81153]
[1723811282351,2.353,2593.3,2592.9,3.85667]
[1723811282655,2.973879,2593.3,2592.9,3.85667]
[1723811282850,2.353,2593.3,2593.0,3.8565]
[1723811283947,2.3903,2593.8,2593.1,3.201]
[1723811284259,0.12739989,2593.7,2593.3,7.71199]
[1723811284410,0.12739989,2593.6,2593.3,7.71199]
[1723811284607,2.4842,2593.4,2593.1,3.201]
[1723811284920,2.4842,2593.8,2593.3,3.85601]
[1723811285122,0.12740404,2593.7,2593.4,3.85592]
[1723811285308,0.12740404,2593.6,2593.1,3.8563]
[1723811285507,0.12740404,2593.5,2593.1,3.8563]
[1723811285728,0.31478115,2593.7,2593.3,3.85608]
[1723811285961,0.12739752,2593.6,2593.4,3.85593]
[1723811286142,2.4842,2593.8,2593.2,3.85616]
[1723811286143,0.12739752,2593.5,2593.3,3.85608]
[1723811286483,3.54811461,2593.8,2593.4,3.85591]
[1723811286776,0.12739564,2593.7,2593.4,3.85591]
[1723811286947,0.12739564,2593.6,2593.4,3.85591]
[1723811287279,0.12739564,2593.5,2593.4,3.85591]
[1723811287441,2.4842,2593.8,2593.5,3.85577]
[1723811287442,0.12738904,2593.7,2593.5,3.85577]
[1723811287652,2.4842,2593.8,2593.5,3.85577]
[1723811287834,0.12738967,2593.7,2593.3,7.71193]
[1723811288246,0.07615787,2593.6,2593.3,3.85594]
[1723811288440,0.12738967,2593.5,2593.3,3.85594]
[1723811288640,0.12738967,2593.4,2593.3,3.85594]
[1723811288870,0.12738967,2593.6,2593.3,3.85594]
[1723811289078,0.12738967,2593.5,2593.3,3.85594]
[1723811289436,0.12738967,2593.4,2593.3,3.85594]
[1723811289602,0.12738967,2593.4,2593.2,3.85623]
[1723811289885,0.12738967,2593.3,2593.2,3.85623]
[1723811290083,1.22339707,2593.6,2593.2,3.85623]
[1723811290399,0.12738967,2593.5,2593.2,3.85623]
[1723811290596,2.4754,2593.4,2592.6,3.0]
[1723811290743,2.4754,2593.2,2592.4,3.85741]
[1723811290943,0.12738967,2593.1,2592.6,3.85702]
[1723811291163,6.11253616,2593.2,2592.6,3.85702]
[1723811291164,0.12738967,2593.0,2592.6,3.85702]
[1723811291340,0.12738967,2592.9,2592.6,3.85702]
[1723811291717,0.12738967,2592.8,2592.6,3.85702]
[1723811291872,0.12743717,2592.8,2592.5,7.05819]
[1723811292073,0.12743717,2592.7,2592.6,3.85713]
[1723811292392,0.12743717,2592.7,2592.6,7.71426]
[1723811292540,2.4754,2593.2,2592.9,3.85664]
[1723811292744,0.12742043,2593.1,2593.0,3.85653]
[1723811292973,0.12742043,2593.1,2593.0,7.71306]
[1723811293362,0.12742043,2593.1,2593.0,3.85653]
[1723811294497,0.12742043,2593.1,2593.0,7.71306]
[1723811294702,0.12742043,2593.1,2593.0,3.85653]
[1723811295403,0.12742043,2593.1,2592.8,3.201]
[1723811295573,2.3589,2593.3,2592.9,3.85665]
[1723811295574,0.12742043,2593.0,2592.9,3.85665]
[1723811295980,2.3589,2593.3,2592.9,3.85665]
[1723811296182,0.1274143,2593.2,2592.8,3.201]
[1723811296502,0.1274143,2593.1,2592.8,3.201]
[1723811296680,0.1274143,2593.0,2592.8,3.201]
[1723811297001,0.1274143,2592.9,2592.6,3.85712]
[1723811297210,4.84154866,2593.2,2592.6,3.85712]
[1723811297211,0.1274143,2592.8,2592.6,3.85712]
[1723811297506,0.1274143,2592.7,2592.5,7.05815]
[1723811297701,0.1274143,2592.6,2592.5,7.05815]
[1723811298077,0.1274143,2592.7,2592.5,7.05815]
[1723811298490,0.1274143,2592.7,2592.5,10.91534]
[1723811298677,0.1274143,2592.7,2592.6,3.85713]
[1723811299001,5.98974664,2593.2,2592.7,3.85685]
[1723811299311,0.12742688,2593.1,2592.7,3.85685]
[1723811299502,0.12742688,2593.0,2592.7,3.85685]
[1723811299707,0.12742688,2592.9,2592.8,3.85683]
[1723811300870,2.4188,2593.5,2593.1,3.85638]
[1723811301208,0.1274081,2593.4,2593.1,3.85638]
[1723811301385,3.85558,2593.7,2592.8,3.201]
[1723811301386,0.1274081,2593.3,2592.8,3.201]
[1723811301589,0.1274081,2593.2,2593.1,3.85626]
[1723811302301,0.1274081,2593.2,2592.9,3.85657]
[1723811302517,0.1274081,2593.1,2592.8,7.05782]
[1723811302707,6.20470787,2593.4,2592.7,3.8569]
[1723811302708,0.12741266,2593.0,2592.7,3.8569]
[1723811302908,0.22726,2593.3,2592.8,3.85683]
[1723811302909,0.12741266,2592.9,2592.8,3.85683]
[1723811303077,0.12741266,2593.2,2592.7,7.7138]
[1723811303273,3.86597132,2593.3,2592.7,3.8569]
[1723811303274,0.12741266,2593.1,2592.7,3.8569]
[1723811303592,7.72206132,2593.3,2592.6,3.0]
[1723811303593,2.4113,2592.9,2592.6,3.0]
[1723811303809,2.4113,2592.9,2592.1,3.985943]
[1723811303810,0.20357053,2592.8,2592.3,3.85748]
[1723811304009,0.20357053,2592.8,2592.1,0.128143]
[1723811304010,3.85715,2592.6,2592.1,0.128143]
[1723811304183,0.20357053,2592.5,2592.1,0.128143]
[1723811304548,2.4113,2592.3,2592.1,0.128143]
[1723811304750,0.38128393,2592.2,2592.1,0.128143]
[1723811305031,4.3151618,2592.2,2592.1,0.128143]
[1723811305243,0.38128393,2592.2,2592.1,0.128143]
[1723811305942,0.38134649,2592.2,2592.1,0.128143]
[1723811306152,0.45750436,2592.2,2592.1,0.128143]
[1723811306439,0.38134649,2592.2,2592.1,0.128143]
[1723811307333,0.12747522,2592.2,2592.1,0.128143]
[1723811307486,2.4113,2592.3,2592.1,3.986013]
[1723811308113,2.4113,2592.3,2592.1,3.985933]
[1723811308341,1.03283005,2592.8,2592.2,3.85771]
[1723811308342,2.3997,2592.7,2592.2,3.85771]
[1723811308525,0.12745609,2592.6,2592.2,3.85771]
[1723811308707,3.25243841,2592.7,2592.1,3.985933]
[1723811308708,0.12745609,2592.5,2592.1,3.985933]
[1723811308908,0.12745609,2592.4,2592.1,0.128143]
[1723811309113,0.32524384,2592.6,2592.1,3.985913]
[1723811309312,8.43550411,2593.1,2592.4,3.85742]
[1723811309313,6.11151929,2593.1,2592.4,3.85742]
[1723811309561,0.12743854,2593.0,2592.3,7.05851]
[1723811309703,0.12743854,2592.9,2592.5,3.85726]
[1723811309903,0.12743854,2592.8,2592.5,3.85726]
[1723811310099,6.33007,2593.1,2592.5,3.85726]
[1723811310301,6.33007,2593.1,2592.3,7.05849]
[1723811310302,5.3664965,2593.0,2592.3,7.05849]
[1723811310603,0.12744157,2592.9,2592.3,7.05849]
[1723811310799,2.4736,2593.1,2592.7,3.85698]
[1723811311006,0.12742205,2593.0,2592.7,7.71387]
[1723811311238,0.12742205,2592.9,2592.7,7.71379]
[1723811311442,2.4736,2593.1,2592.6,3.201]
[1723811311745,0.12743128,2593.0,2592.7,3.8569]
[1723811311956,2.72096,2593.1,2592.7,3.8569]
[1723811311957,2.4736,2593.1,2592.7,3.8569]
[1723811312235,0.12742543,2593.0,2592.7,3.8569]
[1723811312395,2.4736,2593.1,2592.8,3.85682]
[1723811312593,0.12742235,2593.0,2592.8,3.85681]
[1723811312793,0.12742647,2592.9,2592.7,3.8569]
[1723811313001,2.4736,2593.1,2592.7,3.8569]
[1723811313233,0.12743126,2593.0,2592.8,3.85679]
[1723811313432,2.4736,2593.1,2592.8,3.85679]
[1723811313737,0.12742693,2593.0,2592.7,3.85696]
[1723811314044,0.12742693,2593.0,2592.9,3.85668]
[1723811314396,0.12742693,2593.0,2592.8,3.8567]
[1723811314597,6.19141,2593.4,2592.8,3.8567]
[1723811314804,1.04656649,2593.3,2592.8,3.8567]
[1723811315035,0.12742549,2593.2,2592.8,3.8567]
[1723811315407,0.12742549,2593.2,2592.9,3.8566]
[1723811315736,0.12742549,2593.2,2592.8,3.8567]
[1723811316414,0.12742549,2593.2,2592.8,7.71345]
[1723811316599,0.919141,2593.3,2592.8,3.8567]
[1723811316800,0.12742567,2593.2,2592.8,3.8567]
[1723811317130,0.919141,2593.3,2592.8,7.71342]
[1723811317332,0.12742588,2593.2,2592.9,3.85664]
[1723811317501,0.919141,2593.3,2592.9,3.85664]
[1723811317502,0.12742457,2593.1,2592.9,3.85664]
[1723811317701,0.12742457,2593.0,2592.9,3.85664]
[1723811317907,0.12742096,2593.0,2592.6,3.201]
[1723811318112,3.63666421,2593.5,2592.9,7.05768]
[1723811318315,0.12741249,2593.4,2593.1,3.85636]
[1723811318525,0.12741249,2593.3,2593.1,3.85636]
[1723811318699,0.12741249,2593.3,2593.1,3.85627]
[1723811319031,3.63666421,2593.5,2593.1,3.85627]
[1723811319227,0.12740148,2593.4,2593.1,3.85627]
[1723811319614,0.12740148,2593.4,2593.1,7.71257]
[1723811319821,0.12740148,2593.4,2593.1,3.85627]
[1723811320307,0.12740148,2593.4,2593.2,3.85613]
[1723811320500,0.12740148,2593.4,2593.1,7.71256]
[1723811320706,0.12740148,2593.4,2593.1,3.85627]
[1723811320907,0.12740148,2593.4,2592.9,7.05757]
[1723811320908,0.50380805,2593.4,2593.0,3.85652]
[1723811321107,0.12740148,2593.3,2593.0,3.85652]
[1723811321529,0.12740148,2593.3,2592.9,7.05755]
[1723811321721,0.12740148,2593.3,2593.0,3.8565]
[1723811322234,0.12740148,2593.3,2592.9,7.05767]
[1723811323047,2.55390148,2593.3,2592.9,3.201]
[1723811323243,0.12740148,2593.2,2592.9,7.05768]
[1723811323448,0.12740148,2593.2,2592.9,3.201]
[1723811323848,0.12740148,2593.2,2592.9,7.05767]
[1723811324156,0.12740148,2593.2,2592.9,3.201]
[1723811324341,0.20355935,2593.2,2592.4,3.201]
[1723811324525,0.12740148,2593.1,2592.7,3.8569]
[1723811324728,0.12740148,2593.1,2592.6,3.85712]
[1723811324925,0.8684969,2593.1,2592.5,7.71439]
[1723811325137,0.81725329,2593.1,2592.5,3.85719]
[1723811325330,0.12743515,2593.0,2592.6,3.85712]
[1723811325648,0.12743515,2592.9,2592.6,3.85712]
[1723811325812,2.3723,2592.7,2592.1,0.128143]
[1723811326016,2.3723,2592.7,2592.2,3.85769]
[1723811326017,0.12744467,2592.6,2592.2,3.85769]
[1723811326324,2.3723,2592.7,2592.2,3.85769]
[1723811326325,0.12744061,2592.5,2592.2,3.201]
[1723811326524,2.3723,2592.7,2592.3,3.85746]
[1723811326747,0.12744829,2592.6,2592.2,7.05872]
[1723811326936,0.12744829,2592.5,2592.2,7.05872]
[1723811327124,0.12744829,2592.4,2592.2,3.201]
[1723811327333,6.46653,2592.7,2592.2,3.201]
[1723811327518,0.78172219,2592.6,2592.2,3.201]
[1723811327720,0.1274534,2592.5,2592.2,3.201]
[1723811328617,0.1274569,2592.4,2592.2,3.201]
[1723811328818,0.73042666,2592.6,2592.2,3.201]
[1723811329019,1.23285955,2592.5,2592.2,3.201]
[1723811329220,0.12745688,2592.4,2592.2,7.05868]
[1723811329420,2.3723,2592.7,2592.2,7.05868]
[1723811330063,2.3723,2592.7,2592.3,3.85757]
[1723811330064,0.12745153,2592.6,2592.3,3.85757]
[1723811330354,0.12744126,2592.5,2592.3,3.85757]
[1723811330519,2.3912,2593.0,2592.3,0.7186713]
[1723811330719,0.12743191,2592.9,2592.8,3.85683]
[1723811330915,2.3912,2593.3,2592.9,3.85658]
[1723811331116,0.12742103,2593.2,2592.8,3.85683]
[1723811331321,0.12742103,2593.1,2592.8,3.85683]
[1723811331580,0.23912,2593.2,2592.8,3.85683]
[1723811331581,0.12742103,2593.0,2592.8,3.85683]
[1723811331725,0.23912,2593.2,2592.8,3.85683]
[1723811331926,0.12741919,2593.1,2592.9,3.85662]